{"text_format":"1","workbook":"xlsx","n_sheets":8,"sheets":["Strona 1","Strona 2","Strona 3","Strona 4","Strona 5","Strona 6","Strona 7","Strona 8"],"not_rendered":{"charts":0,"images":0,"macros":1,"external_links":0,"defined_names":8,"comments":0,"pivot_tables":0},"unopened":[],"bounds":{"document_bytes":16777216,"sheet_cells":100000,"rows_first":2000,"rows_last":500,"rows_between":2000,"halvings":0,"cell_chars":16384,"cell_head_chars":4096},"cells_cut":0,"cells_raw":0,"read":"whole","date_system":"1900"}

{"sheet":"Strona 1","index":0,"n_rows":65,"n_cols":25,"rows_kept":65,"cut":false,"hidden":false,"merged":[[1,21,1,23],[2,2,3,23],[5,7,6,16],[9,7,9,16],[4,1,4,6],[8,7,8,16],[1,3,1,7],[1,10,1,14],[5,17,5,22],[7,7,7,16],[30,1,30,10],[22,1,22,24],[21,1,21,26],[19,1,19,8],[29,1,29,14],[29,16,30,17],[29,22,30,23],[29,18,30,20],[29,24,30,26],[10,18,10,24],[12,8,12,11],[10,7,10,16],[14,1,14,26],[12,17,13,26],[5,1,13,6],[16,2,16,24],[24,1,24,26],[25,1,25,6],[27,1,27,26],[17,1,17,12],[15,2,15,24],[32,24,33,26],[38,1,38,14],[39,1,39,25],[32,18,33,20],[32,16,33,17],[36,1,36,9],[33,1,33,15],[32,1,32,14],[32,22,33,23],[44,1,44,18],[40,1,40,25],[35,1,35,25],[42,1,42,25],[41,1,41,6],[43,1,43,26],[56,2,56,5],[56,7,56,10],[56,13,56,23],[50,1,50,26],[51,1,51,13],[53,2,53,24],[54,2,55,5],[54,7,55,10],[49,1,49,5],[55,13,55,23],[46,1,46,7],[45,1,45,25],[48,1,48,25],[47,1,47,26]]}
[]
[null,null,null,"Wypełnia US Oddział terenowy ",null,null,null,null,null,null," Nr formularza",null,null,null,null,null,null,null,null,null,null,"strona 1"]
[null,null," GŁÓWNY URZĄD STATYSTYCZNY, al. Niepodległości 208, 00-925 Warszawa www.stat.gov.pl"]
[]
[null," Nazwa i adres jednostki sprawozdawczej"]
[null,null,null,null,null,null,null,"F-01/I-01"]
[null,null,null,null,null,null,null,null,null,null,null,null,null,null,null,null,null,null," Starostwo Powiatowe"]
[null,null,null,null,null,null,null,"Sprawozdanie o przychodach,",null,null,null,null,null,null,null,null,null,null,null,"w Wodzisławiu Śl."]
[null,null,null,null,null,null,null,"kosztach i wyniku finansowym"]
[null,null,null,null,null,null,null,"oraz o nakładach na środki trwałe"]
[null,null,null,null,null,null,null,"za okres od początku roku"]
[]
[null,null,null,null,null,null,null," do końca","maja   2018 ",null,null,null,null,null,null,null,null," Przekazać/wysłać w terminie do 20 dnia  każego miesiąca"]
[]
[null,"Obowiązek przekazywania danych statystycznych wynika z art. 31 ustawy z dnia 29 czerwca 1995 r. o statystyce publicznej\n(Dz.U. Nr 88 poz.439 z późn. zm. oraz rozporządzenia Rady Ministrów z dnia 5 września 2006 r. w sprawie programu badań\nstatystycznych statystyki publicznej na rok 2007 (Dz.U. Nr 170, poz.1219)"]
[null,null,"kancelaria@zoz.wodzislaw.pl"]
[null,null,"e-mail sekretariatu dyrektora/prezesa firmy - WYPEŁNIAĆ WIELKIMI LITERAMI"]
[null," Numer identyfikacyjny - REGON (wpisywać od pierwszej kratki z lewej strony)",null,null,null,null,null,null,null,null,null,null,null,"0","0","0","3","1","2","4","5","5"]
[]
[null," 1. Symbol rodzaju podstawowej działalności wg PKD  ",null,null,null,null,null,null,null,null,"8","6","1","0","z"]
[]
[null," 2. Jednostki, których rok obrotowy nie pokrywa się z rokiem kalendarzowym, sporządzają sprawozdanie za rok kalendarzowy."]
[null," Proszę podawać dane według stanu na koniec każdego kwartału w ramach roku kalendarzowego."]
[]
[null," 3. Podmioty posiadające oddziały (zakłady) poza terytorium Rzeczypospolitej Polskiej przekazują sprawozdanie łącznie"]
[null," z danymi z tych oddziałów (zakładów)."]
[]
[null," 4. Jednostki kończące lub zawieszające działalność składają sprawozdanie z danymi na dzień zakończenia działalności."]
[]
[null," 5. Czy kapitał zagraniczny posiada udziały w kapitale zakładowym jednostki?",null,null,null,null,null,null,null,null,null,null,null,null,null,null,null,null,"1 tak",null,null,null,null,null,"2 nie"]
[null," (proszę zaznaczyć właściwą odpowiedź)"]
[]
[null," 6. Czy jednostka sporządza sprawozdanie finansowe zgodnie \n     z Międzynarodowymi Standardami Rachunkowości?",null,null,null,null,null,null,null,null,null,null,null,null,null,null,null,null,"1 tak",null,null,null,null,null,"2 nie"]
[null," (proszę zaznaczyć właściwą odpowiedź) - patrz objaśnienia do F01/I01"]
[]
[null," Ze względu na przystosowanie formularza do odczytu optycznego, GUS prosi sporządzających sprawozdanie o"]
[null," przestrzeganie następujących zasad jego wypełniania:"]
[]
[null," >>   wypełnić starannie i czytelnie tylko długopisem koloru czarnego,"]
[null," >>   w jedną kratkę wpisywać tylko jedną cyfrę, która w całości musi znaleźć się w obębie białego pola tej kratki, nie"]
[null," stosować żadnych skreśleń, a w przypadku pomyłki, dokładnie usunąć błędny zapis korektorem i wpisać w tym "]
[null," miejscu zapis poprawny,"]
[null," >>   wszystkie liczby należy wpisywać cyframi arabskimi z dokładnością do tysiąca zł (bez znaku po przecinku),"]
[null," >>   wpisywać liczby począwszy od pierwszej kratki z lewej strony, pozostawiać puste, niewypełnione kratki w sytuacji,"]
[null," gdy na wpisanie liczby potrzeba mniej kratek niż przewidziano do wypełnienia,"]
[null," >>   pozostawiać wszystkie puste kratki, w przypadku braku informacji liczbowej (jeżeli zjawisko nie występuje), nie"]
[null," należy wpisywać zer lub kresek,"]
[null," >>   nie dokonywać dodatkowych zapisów na marginesach, a szczególnie w rogach formularza, dbać aby formularz"]
[null," w czasie wypełniania nie uległ zabrudzeniom i uszkodzeniom, przesyłać do urzędów statystycznych orginały"]
[null," sprawozdań a nie kopie,"]
[null," >>   dane z formularza będą rejestrowane przez urządzenia automatycznego odczytu optycznego (OCR), które wymaga-"]
[null," ją odpowiedniej staranności i precyzji w wypełnianiu pól formularza."]
[]
[]
[null,null,"Michalina Rogala",null,null,null,null,"Wodzisław Śl. 19-06-2018"]
[]
[null,null,"(imię, nazwisko i telefon osoby,\nsporządzającej sprawozdanie)",null,null,null,null,"(miejscowość, data)",null,null,null,null,null,"(pieczątka imienna i podpis osoby\ndziałającej w imieniu sprawozdawcy)"]
[]
[]
[]
[]
[]
[]
[]
[null,null,null,null,null,null,null,2]

{"sheet":"Strona 2","index":1,"n_rows":63,"n_cols":6,"rows_kept":63,"cut":false,"hidden":false,"merged":[[22,5,23,5],[24,5,25,5],[50,5,51,5],[48,5,49,5],[46,5,47,5],[40,5,41,5],[18,4,19,4],[20,4,21,4],[34,4,35,4],[38,5,39,5],[42,5,43,5],[8,4,9,4],[8,5,9,5],[12,5,13,5],[10,5,11,5],[24,4,25,4],[1,1,1,4],[3,1,3,4],[4,1,4,4],[5,1,5,4],[8,1,19,1],[22,4,23,4],[10,4,11,4],[14,4,15,4],[8,2,9,3],[18,2,19,3],[48,2,49,3],[48,4,49,4],[36,2,37,3],[6,4,7,4],[14,2,15,3],[12,4,13,4],[10,2,11,3],[32,4,33,4],[28,4,29,4],[26,4,27,4],[38,2,39,3],[42,3,43,3],[36,5,37,5],[30,4,31,4],[50,4,51,4],[34,2,35,3],[42,2,45,2],[46,2,47,3],[50,2,51,3],[46,4,47,4],[44,5,45,5],[28,2,29,3],[32,2,33,3],[30,2,31,3],[30,5,31,5],[28,5,29,5],[32,5,33,5],[34,5,35,5],[38,4,39,4],[40,2,41,3],[14,5,15,5],[6,1,7,3],[6,5,7,5],[26,5,27,5],[16,2,17,3],[12,2,13,3],[16,5,17,5],[18,5,19,5],[16,4,17,4],[20,1,21,3],[20,5,21,5],[22,1,51,1],[22,2,23,3],[36,4,37,4],[40,4,41,4],[42,4,43,4],[44,4,45,4],[26,2,27,3],[24,2,25,3],[44,3,45,3]]}
[]
[null," Część I.  PRZYCHODY, KOSZTY I WYNIK FINANSOWY (w  zł)",null,null,null,"strona 2"]
[]
[null," Dział 1. Rachunek zysków i strat"]
[null,"Wyszczególnienie",null,null,null,"Kwota w zł"]
[null,0,null,null,null,1]
[null," A. Przychody netto ze sprzedaży i zrównanie z nimi (w. 02+04+05+06)",null,null,"01",{"$f":"F9","v":35668854.020000003}]
[]
[null,"z tego"," przychody netto ze sprzedaży produktów",null,"02",35668854.020000003]
[]
[null,null," w tym sprzedaż na eksport",null,"03"]
[]
[null,null," zmiana stanu produktów (zwiększenie - wartość dodatnia,\n zmniejszenie - wartość ujemna) (+,-)",null,"04"]
[]
[null,null," koszt wytworzenia produktów na własne potrzeby",null,"05"]
[]
[null,null," przychody netto ze sprzedaży towarów i materiałów",null,"06"]
[]
[null,null,"w tym sprzedaż na eksport",null,"07"]
[]
[null," B. Koszty działalności operacyjnej (w. 09+10+12+14+16+18+21+23)",null,null,"08",{"$f":"F23+F25+F29+F33+F37+F41+F47","v":37734592}]
[]
[null,"z tego"," amortyzacja",null,"09",1268892]
[]
[null,null," zużycie materiałów i energii",null,"10",5913684]
[]
[null,null," w tym energii",null,"11",1145610]
[]
[null,null," usługi obce",null,"12",8161082]
[]
[null,null," w tym zakupione w celu odsprzedaży (podwykonawstwo)",null,"13",0]
[]
[null,null," podatki i opłaty",null,"14",543192]
[]
[null,null," w tym podatek akcyzowy",null,"15",0]
[]
[null,null," wynagrodzenia",null,"16",17854736]
[]
[null,null," w tym ze stosunku pracy",null,"17",17151462]
[]
[null,null," ubezpieczenia społeczne i inne świadczenia",null,"18",3845587]
[]
[null,null,"w tym  "," składki z tytułu ubezpieczeń społecznych",null,3289655]
[]
[null,null,null," wydatki z tytułu szkolenia pracowników","20",21034]
[]
[null,null," pozostałe koszty rodzajowe",null,"21",147419]
[]
[null,null,"w tym podróże służbowe",null,"22",8309]
[]
[null,null," wartość sprzedanych towarów i materiałów",null,"23"]
[]
[]
[]
[]
[]
[]
[]
[]
[]
[]
[]
[null,"© www.signform.pl Sp. z o.o., e-mail: biuro@signform.pl, tel. (0-22) 337-11-51, fax: (0-22) 337-11-52"]

{"sheet":"Strona 3","index":2,"n_rows":62,"n_cols":17,"rows_kept":62,"cut":false,"hidden":false,"merged":[[13,11,14,20],[9,11,10,20],[7,11,7,20],[11,1,12,9],[9,10,10,10],[11,10,12,10],[1,16,1,18],[11,11,12,20],[8,11,8,20],[1,6,1,9],[3,1,3,6],[8,1,8,10],[6,1,6,3],[7,1,7,10],[9,1,10,9],[25,1,34,1],[31,10,32,10],[19,3,20,9],[21,3,22,9],[23,1,24,9],[23,10,24,10],[27,2,28,9],[29,2,30,9],[33,3,34,9],[33,10,34,10],[17,3,18,9],[15,3,16,9],[15,1,22,2],[13,10,14,10],[13,1,14,9],[21,10,22,10],[19,10,20,10],[31,3,32,9],[25,2,26,9],[31,2,34,2],[31,11,32,20],[25,11,26,20],[29,11,30,20],[25,10,26,10],[27,10,28,10],[29,10,30,10],[27,11,28,20],[35,11,36,20],[47,3,48,9],[37,11,38,20],[33,11,34,20],[43,3,44,9],[37,1,38,9],[35,1,36,9],[39,10,40,10],[37,10,38,10],[39,11,40,20],[41,10,42,10],[51,10,52,10],[43,10,44,10],[41,11,42,20],[49,11,50,20],[45,11,46,20],[47,11,48,20],[43,11,44,20],[45,10,46,10],[15,10,16,10],[19,11,20,20],[21,11,22,20],[15,11,16,20],[51,3,52,9],[49,3,50,9],[41,3,42,9],[39,1,40,9],[45,3,46,9],[41,1,54,2],[53,10,54,10],[49,10,50,10],[53,3,54,9],[47,10,48,10],[17,11,18,20],[23,11,24,20],[17,10,18,10],[53,11,54,20],[51,11,52,20],[35,10,36,10]]}
[]
[null,null,null," Wpełnia US   Oddział terenowy",null,null," Nr formularza",null,null,null,null,null,null,null,null,null,"strona 3"]
[]
[null,"Numer identyfikacyjny - REGON (wpisywać od pierwszej kratki z lewej strony)"]
[]
[]
[null," Dział 1. Rachunek zysków i strat (cd.)"]
[null,"Wyszczególnienie",null,null,null,null,null,null,null,null,null,"Kwota w zł"]
[null,0,null,null,null,null,null,null,null,null,null,1]
[null," C1. Zysk ze sprzedaży (w. 01-08)>0",null,null,null,null,null,null,null,null,24,{"$f":"IF(AND('Strona 2'!F7=\"\",'Strona 2'!F21=\"\"),\"\",IF(SUM('Strona 2'!F7,-'Strona 2'!F21)>0,SUM('Strona 2'!F7,-'Strona 2'!F21),0))","v":0}]
[]
[null," C2. Strata ze sprzedaży (w. 01-08)<0",null,null,null,null,null,null,null,null,25]
[]
[null," D. Pozostałe przychody operacyjne (w.27+28+29)",null,null,null,null,null,null,null,null,26,{"$f":"L16+L18+L20","v":1695452}]
[]
[null,"z tego",null," zysk ze zbycia niefinansowych aktywów trwałych",null,null,null,null,null,null,27]
[]
[null,null,null," dotacje",null,null,null,null,null,null,28]
[]
[null,null,null," inne przychody operacyjne",null,null,null,null,null,null,29,1695452]
[]
[null,null,null,"w tym rozwiązane rezerwy",null,null,null,null,null,null,30]
[]
[null," E. Pozostałe koszty operacyjne (w. 32+33+34)",null,null,null,null,null,null,null,null,31,{"$f":"L26+L28+L30","v":241131}]
[]
[null,"z tego"," strata ze zbycia niefinansowanych aktywów trwałych",null,null,null,null,null,null,null,32]
[]
[null,null," aktualizacja wartości aktywów niefinansowych",null,null,null,null,null,null,null,33]
[]
[null,null," inne koszty operacyjne",null,null,null,null,null,null,null,34,241131]
[]
[null,null," w tym"," rezerwy na przyszłe zobowiązania",null,null,null,null,null,null,35]
[]
[null,null,null," odpisane wierzytelności (w wyniku postępowań upadłościowych, \n układowych i naprawczych)",null,null,null,null,null,null,36]
[]
[null," F1. Zysk na działalności operacyjnej (w. 01-08+26-31)>0",null,null,null,null,null,null,null,null,37,{"$f":"IF(AND('Strona 2'!F7=\"\",'Strona 2'!F21=\"\",L14=\"\",L24=\"\"),\"\",IF((SUM('Strona 2'!F7,L14)-SUM('Strona 2'!F21,L24))<0,0,(SUM('Strona 2'!F7,L14)-SUM('Strona 2'!F21,L24))))","v":0}]
[]
[null," F2. Strata na działalności operacyjnej (w. 01-08+26-31)<0",null,null,null,null,null,null,null,null,38,{"$f":"IF(AND('Strona 2'!F7=\"\",'Strona 2'!F21=\"\",L14=\"\",L24=\"\"),\"\",IF((-SUM('Strona 2'!F7,L14)+SUM('Strona 2'!F21,L24))<0,0,(-SUM('Strona 2'!F7,L14)+SUM('Strona 2'!F21,L24))))","v":611416.97999999672}]
[]
[null," G. Przychody finansowe (w. 40+41+43+44+45)",null,null,null,null,null,null,null,null,39,9863]
[]
[null,"z tego",null," dywidendy i udziały w zysku",null,null,null,null,null,null,40,0]
[]
[null,null,null," odsetki",null,null,null,null,null,null,41,9863]
[]
[null,null,null,"w tym od udzielonych pożyczek i lokat terminowych",null,null,null,null,null,null,42]
[]
[null,null,null," zysk ze zbycia inwestycji",null,null,null,null,null,null,43]
[]
[null,null,null," aktualizacja wartości inwestycji",null,null,null,null,null,null,44]
[]
[null,null,null," inne",null,null,null,null,null,null,45]
[]
[null,null,null,"w tym nadwyżka dodatnich różnic kursowych nad ujemnymi",null,null,null,null,null,null,46]
[]
[]
[]
[]
[]
[]
[]
[null,"© www.signform.pl Sp. z o.o., e-mail: biuro@signform.pl, tel. (0-22) 337-11-51, fax: (0-22) 337-11-52"]

{"sheet":"Strona 4","index":3,"n_rows":51,"n_cols":5,"rows_kept":51,"cut":false,"hidden":false,"merged":[[1,1,1,3],[2,1,2,3],[3,1,3,3],[4,1,5,2],[4,3,5,3],[4,4,5,4],[10,2,11,2],[10,3,11,3],[14,2,15,2],[14,4,15,4],[14,3,15,3],[6,3,7,3],[6,2,7,2],[6,4,7,4],[12,3,13,3],[12,2,13,2],[18,4,19,4],[6,1,17,1],[8,3,9,3],[12,4,13,4],[10,4,11,4],[16,4,17,4],[8,4,9,4],[8,2,9,2],[18,3,19,3],[16,3,17,3],[18,1,19,2],[16,2,17,2],[24,4,25,4],[24,1,25,2],[20,4,21,4],[22,4,23,4],[22,1,23,2],[24,3,25,3],[22,3,23,3],[26,4,27,4],[28,4,29,4],[26,1,27,2],[26,3,27,3],[20,1,21,2],[20,3,21,3],[28,1,29,2],[28,3,29,3],[34,2,35,2],[34,3,35,3],[34,4,35,4],[30,4,31,4],[32,2,33,2],[32,3,33,3],[30,1,31,2],[30,3,31,3],[32,4,33,4],[32,1,35,1],[40,1,41,2],[40,3,41,3],[40,4,41,4],[36,1,37,2],[36,3,37,3],[36,4,37,4],[38,1,39,2],[38,3,39,3],[38,4,39,4]]}
[]
[null," Dział 1. Rachunek zysków i strat (dok.)",null,null,"strona 4"]
[null,"Wyszczególnienie",null,null,"Kwota w zł"]
[null,0,null,null,1]
[null," H. Koszty finansowe (w. 48+50+51+52)",null,"47",{"$f":"E7+E15","v":480130}]
[]
[null,"z tego"," odsetki","48",418735]
[]
[null,null,"w tym odsetki od kredytów i pożyczek","49",167964]
[]
[null,null," strata ze zbycia inwestycji","50"]
[]
[null,null," aktualizacja wartości inwestycji","51"]
[]
[null,null," inne","52",61395]
[]
[null,null,"w tym nadwyżka ujemnych różnic kursowych nad dodatnimi","53"]
[]
[null," I1. Zysk z działalności gospodarczej (w. 01-08+26-31+39-47)>0",null,"54",{"$f":"IF(AND('Strona 2'!F7=\"\",'Strona 2'!F21=\"\",'Strona 3'!L14=\"\",'Strona 3'!L24=\"\",'Strona 3'!L40=\"\",E5=\"\"),\"\",IF((SUM('Strona 2'!F7,'Strona 3'!L14,'Strona 3'!L40)-SUM('Strona 2'!F21,'Strona 3'!L24,E5))<0,0,(SUM('Strona 2'!F7,'Strona 3'!L14,'Strona 3'!L40)-SUM('Strona 2'!F21,'Strona 3'!L24,E5))))","v":0}]
[]
[null," I2. Strata z działalności gospodarczej (w. 01-08+26-31+39-47)<0",null,"55",{"$f":"IF(AND('Strona 2'!F7=\"\",'Strona 2'!F21=\"\",'Strona 3'!L14=\"\",'Strona 3'!L24=\"\",'Strona 3'!L40=\"\",E5=\"\"),\"\",IF((-SUM('Strona 2'!F7,'Strona 3'!L14,'Strona 3'!L40)+SUM('Strona 2'!F21,'Strona 3'!L24,E5))<0,0,(-SUM('Strona 2'!F7,'Strona 3'!L14,'Strona 3'!L40)+SUM('Strona 2'!F21,'Strona 3'!L24,E5))))","v":1081683.9799999967}]
[]
[null," J1. Zyski nadzwyczajne",null,"56"]
[]
[null," J2. Straty nadzwyczajne",null,"57"]
[]
[null," K1. Zysk brutto (w. 01-08+26-31+39-47+56-57)>0",null,"58",{"$f":"IF(AND('Strona 2'!F7=\"\",'Strona 2'!F21=\"\",'Strona 3'!L14=\"\",'Strona 3'!L24=\"\",'Strona 3'!L40=\"\",E5=\"\",E23=\"\",E25=\"\"),\"\",IF((SUM('Strona 2'!F7,'Strona 3'!L14,'Strona 3'!L40,E23)-SUM('Strona 2'!F21,'Strona 3'!L24,E5,E25))<0,0,(SUM('Strona 2'!F7,'Strona 3'!L14,'Strona 3'!L40,E23)-SUM('Strona 2'!F21,'Strona 3'!L24,E5,E25))))","v":0}]
[]
[null," K2. Strata brutto (w. 01-08+26-31+39-47+56-57)<0",null,"59",{"$f":"IF(AND('Strona 2'!F7=\"\",'Strona 2'!F21=\"\",'Strona 3'!L14=\"\",'Strona 3'!L24=\"\",'Strona 3'!L40=\"\",E5=\"\",E23=\"\",E25=\"\"),\"\",IF((-SUM('Strona 2'!F7,'Strona 3'!L14,'Strona 3'!L40,E23)+SUM('Strona 2'!F21,'Strona 3'!L24,E5,E25))<0,0,(-SUM('Strona 2'!F7,'Strona 3'!L14,'Strona 3'!L40,E23)+SUM('Strona 2'!F21,'Strona 3'!L24,E5,E25))))","v":1081683.9799999967}]
[]
[null," L. Podatek dochodowy",null,"60"]
[]
[null,"z tego"," część bieżąca","61"]
[]
[null,null," część odroczona","62"]
[]
[null," M. Pozostałe obowiązkowe zmniejszenie zysku (zwiększenie straty)",null,"63"]
[]
[null," N1. Zysk netto (w. 01-08+26-31+39-47+56-57-60-63)>0",null,"64",{"$f":"IF(AND('Strona 2'!F7=\"\",'Strona 2'!F21=\"\",'Strona 3'!L14=\"\",'Strona 3'!L24=\"\",'Strona 3'!L40=\"\",E5=\"\",E23=\"\",E25=\"\",E31=\"\",E37=\"\"),\"\",IF((SUM('Strona 2'!F7,'Strona 3'!L14,'Strona 3'!L40,E23)-SUM('Strona 2'!F21,'Strona 3'!L24,E5,E25,E31,E37))<0,0,(SUM('Strona 2'!F7,'Strona 3'!L14,'Strona 3'!L40,E23)-SUM('Strona 2'!F21,'Strona 3'!L24,E5,E25,E31,E37))))","v":0}]
[]
[null," N2. Strata netto (w. 01-08+26-31+39-47+56-57-60-63)<0",null,"65",{"$f":"IF(AND('Strona 2'!F7=\"\",'Strona 2'!F21=\"\",'Strona 3'!L14=\"\",'Strona 3'!L24=\"\",'Strona 3'!L40=\"\",E5=\"\",E23=\"\",E25=\"\",E31=\"\",E37=\"\"),\"\",IF((-SUM('Strona 2'!F7,'Strona 3'!L14,'Strona 3'!L40,E23)+SUM('Strona 2'!F21,'Strona 3'!L24,E5,E25,E31,E37))<0,0,(-SUM('Strona 2'!F7,'Strona 3'!L14,'Strona 3'!L40,E23)+SUM('Strona 2'!F21,'Strona 3'!L24,E5,E25,E31,E37))))","v":1081683.9799999967}]
[]
[]
[]
[]
[]
[]
[]
[]
[]
[null,"© www.signform.pl Sp. z o.o., e-mail: biuro@signform.pl, tel. (0-22) 337-11-51, fax: (0-22) 337-11-52"]

{"sheet":"Strona 5","index":4,"n_rows":63,"n_cols":10,"rows_kept":63,"cut":false,"hidden":false,"merged":[[3,8,3,9],[4,8,4,9],[5,8,6,9],[19,8,20,9],[7,8,8,9],[13,8,14,9],[11,8,12,9],[15,8,16,9],[7,1,8,6],[9,1,10,6],[17,1,18,6],[2,1,2,4],[3,1,3,7],[7,7,8,7],[5,1,6,6],[4,1,4,7],[5,7,6,7],[19,1,20,6],[9,7,10,7],[15,7,16,7],[9,8,10,9],[11,1,12,6],[11,7,12,7],[17,8,18,9],[15,1,16,6],[23,8,24,9],[25,7,26,7],[27,7,28,7],[13,1,14,6],[21,2,22,6],[13,7,14,7],[19,7,20,7],[21,7,22,7],[17,7,18,7],[27,8,28,9],[21,8,22,9],[25,8,26,9],[25,1,26,6],[36,6,37,8],[35,1,35,4],[31,8,32,9],[27,1,28,6],[21,1,24,1],[23,2,24,6],[23,7,24,7],[29,8,30,9],[31,1,32,6],[31,7,32,7],[29,7,30,7],[29,1,30,6],[41,9,42,9],[41,2,42,4],[41,6,42,8],[39,6,40,8],[38,6,38,8],[39,1,40,4],[33,1,33,9],[43,5,44,5],[39,9,40,9],[43,6,44,8],[39,5,40,5],[41,1,48,1],[47,2,48,4],[45,5,46,5],[51,6,52,8],[55,6,56,8],[51,9,52,9],[43,9,44,9],[59,9,60,9],[59,6,60,8],[53,6,54,8],[45,9,46,9],[47,9,48,9],[47,6,48,8],[53,9,54,9],[55,9,56,9],[57,9,58,9],[49,9,50,9],[36,1,37,5],[45,2,46,4],[41,5,42,5],[43,2,44,4],[38,1,38,5],[45,6,46,8],[49,6,50,8],[55,2,56,4],[57,2,60,2],[51,2,52,4],[49,1,50,4],[51,1,60,1],[59,3,60,4],[57,3,58,4],[53,2,54,4],[47,5,48,5],[57,6,58,8],[57,5,58,5],[53,5,54,5],[55,5,56,5],[59,5,60,5],[49,5,50,5],[51,5,52,5]]}
[]
[null,null,null,null,null,null,null,null,null,"strona 5"]
[null," Dane uzupełniające (w zł)"]
[null,"Wyszczególnienie",null,null,null,null,null,null,"Kwota w zł"]
[null,0,null,null,null,null,null,null,1]
[null," Przychody ze sprzedaży traktowane jako eksport",null,null,null,null,null,66]
[]
[null," Przychody ze sprzedaży opodatkowane stawką VAT 23%",null,null,null,null,null,67,863815]
[]
[null," Przychody ze sprzedaży opodatkowane stawką VAT 8%",null,null,null,null,null,68,16055]
[]
[null," Przychody ze sprzedaży opodatkowane innymi stawkami, w tym sprzedaż w kraju\n ze stawką VAT 0%",null,null,null,null,null,69]
[]
[null," Przychody ze sprzedaży zwolnione od podatku VAT",null,null,null,null,null,70,34788984]
[]
[null," Z wiersza 01 dz. 1 przypada na dotacje do działalności podstawowej",null,null,null,null,null,71,"  "]
[]
[null," Z wiersza 02 dz. 1 przypada na dotacje do produktów (wyrobów i usług)",null,null,null,null,null,72]
[]
[null," Wartość zakupów z importu ogółem",null,null,null,null,null,73]
[]
[null,"w tym"," import surowców, materiałów i półfabrykatów na cele produkcyjne",null,null,null,null,74]
[]
[null,null," import towarów przeznaczonych do dalszej odsprzedaży",null,null,null,null,75]
[]
[null," Z wiersza 08 dz. 1 przypada na składki z tytułu ubezpieczeń majątkowych i osobowych",null,null,null,null,null,76,135646]
[]
[null," Z wiersza 15 dz. 1 przypada na podatek akcyzowy ze sprzedaży produktów",null,null,null,null,null,77]
[]
[null," Przeciętne zatrudnienie w przeliczeniu na pełne etaty",null,null,null,null,null,78,859]
[]
[null," Liczba pracujących w osobach",null,null,null,null,null,79,878]
[]
[null," Wiersze 66-77 w kwotach narastających. Wiersze 66-70 dotyczą sprzedaży wykazanej w wierszach 02, 06, 26, a wiersz 77 - w wierszu 02."]
[]
[null," Dział 2. Aktywa obrotowe i trwałe (w zł)"]
[null,"Wyszczególnienie",null,null,null,null,"Stan na \n01.01.2011 r.",null,null,"Stan na koniec okresu\n"]
[null,null,null,null,null,null,null,null,null,"sprawozdawczego"]
[null,0,null,null,null,null,1,null,null,2]
[null," Zapasy ogółem",null,null,null,"01",null,null,null,{"$f":"IF(AND(J42=\"\",J44=\"\",J46=\"\",J48=\"\"),\"\",SUM(J42,J44,J46,J48))","v":1216964}]
[]
[null,"w tym"," materiały",null,null,"02",null,null,null,1216964]
[]
[null,null," półprodukty i produkty w toku",null,null,"03"]
[]
[null,null," produkty gotowe",null,null,"04"]
[]
[null,null," towary",null,null,"05"]
[]
[null," Należności krótkoterminowe (w. 07+09)",null,null,null,"06",null,null,null,{"$f":"IF(AND(J52=\"\",J56=\"\"),\"\",SUM(J52,J56))","v":8381600}]
[]
[null,"z tego"," należności od jednostek powiązanych",null,null,"07"]
[]
[null,null," w tym z tytułu dostaw i usług (bez względu na \n okres wymagalności zapłaty)",null,null,"08"]
[]
[null,null," należności od pozostałych jednostek",null,null,"09",null,null,null,{"$f":"J58+J60","v":8381600}]
[]
[null,null,"w tym"," z tytułu dostaw i usług (bez względu na \n okres wymagalności zapłaty)",null,"10",null,null,null,7851585]
[]
[null,null,null," z tytułu podatków, dotacji, ceł, ubezpieczeń\n społecznych i innych świadczeń",null,"11",null,null,null,530015]
[]
[]
[null,"© www.signform.pl Sp. z o.o., e-mail: biuro@signform.pl, tel. (0-22) 337-11-51, fax: (0-22) 337-11-52"]

{"sheet":"Strona 6","index":5,"n_rows":60,"n_cols":8,"rows_kept":60,"cut":false,"hidden":false,"merged":[[8,2,9,3],[10,3,11,3],[2,1,2,4],[3,1,4,4],[8,1,15,1],[10,2,15,2],[14,3,15,3],[5,1,5,4],[6,1,7,3],[12,3,13,3],[6,4,7,4],[8,4,9,4],[16,7,17,7],[16,5,17,6],[16,4,17,4],[12,4,13,4],[14,4,15,4],[10,4,11,4],[12,7,13,7],[14,7,15,7],[31,7,32,7],[28,7,29,7],[18,7,19,7],[22,7,23,7],[20,7,21,7],[24,7,25,7],[10,5,11,6],[8,7,9,7],[22,2,23,3],[22,1,25,1],[24,2,25,3],[24,4,25,4],[14,5,15,6],[20,1,21,3],[18,1,19,3],[18,4,19,4],[27,1,27,5],[31,6,32,6],[3,7,4,7],[12,5,13,6],[3,5,4,6],[8,5,9,6],[6,5,7,6],[5,5,5,6],[6,7,7,7],[10,7,11,7],[16,1,17,3],[24,5,25,6],[20,5,21,6],[18,5,19,6],[22,5,23,6],[20,4,21,4],[22,4,23,4],[45,6,46,6],[45,3,46,5],[41,2,42,5],[39,2,40,5],[31,1,32,5],[28,1,29,6],[30,1,30,6],[33,6,34,6],[33,1,34,5],[39,6,40,6],[41,6,42,6],[43,6,44,6],[37,6,38,6],[43,3,44,5],[35,1,36,5],[37,1,38,5],[35,6,36,6],[39,1,46,1],[43,2,46,2],[45,7,46,7],[41,7,42,7],[33,7,34,7],[37,7,38,7],[39,7,40,7],[43,7,44,7],[35,7,36,7]]}
[]
[]
[null," Dział 2. Aktywa obrotowe i trwałe (w zł) (dok.)",null,null,null,null,null,"strona 6"]
[null,"Wyszczególnienie",null,null,null,"Stan na 01.01.2011 r.",null,"Stan na koniec okresu\nsprawozdawczego"]
[]
[null,0,null,null,null,1,null,2]
[null," Inwestycje krótkoterminowe",null,null,12,null,null,{"$f":"SUM(H9)","v":1120025}]
[]
[null,"w tym"," krótkoterminowe aktywa finansowe",null,13,null,null,1120025]
[]
[null,null,"z tego"," w jednostkach powiązanych",14]
[]
[null,null,null," w pozostałych jednostkach",15]
[]
[null,null,null," środki pieniężne i inne aktywa\n pieniężne",16,null,null,1120025]
[]
[null," Krótkoterminowe rozliczenia\n międzyokresowe",null,null,17,null,null,592997]
[]
[null," Aktywa obrotowe (w. 01+06+12+17)",null,null,18,{"$f":"IF(AND('Strona 5'!G40=\"\",'Strona 5'!G50=\"\",F7=\"\",F17=\"\"),\"\",SUM('Strona 5'!G40,'Strona 5'!G50,F7,F17))","v":""},null,{"$f":"'Strona 5'!J40+'Strona 5'!J50+H7+H17","v":11311586}]
[]
[null," Aktywa trwałe (Aktywa razem - Aktywa\n obrotowe)",null,null,19,null,null,21420756]
[]
[null,"w tym"," należności długoterminowe ogółem",null,20]
[]
[null,null," inwestycje długoterminowe ogółem",null,21]
[]
[]
[null," Dział 3. Wybrane źródła finansowania majątku (w zł)"]
[null,"Wyszczególnienie",null,null,null,null,null,"Stan na koniec okresu\nsprawozdawczego"]
[]
[null,0,null,null,null,null,null,1]
[null," Zobowiązania i rezerwy na zobowiązania (w. 02+04+09+19)",null,null,null,null,"01",{"$f":"IF(AND(H34=\"\",H38=\"\",'Strona 7'!H7=\"\",'Strona 7'!H27=\"\"),\"\",SUM(H34,H38,'Strona 7'!H7,'Strona 7'!H27))","v":41151903.829999998}]
[]
[null," Rezerwy na zobowiązania",null,null,null,null,"02"]
[]
[null,"w tym z tytułu odroczonego podatku dochodowego",null,null,null,null,"03"]
[]
[null," Zobowiązania długoterminowe (w. 05+06)",null,null,null,null,"04",{"$f":"IF(AND(H40=\"\",H42=\"\"),\"\",SUM(H40,H42))","v":16024838.83}]
[]
[null,"z tego"," wobec jednostek powiązanych",null,null,null,"05"]
[]
[null,null," wobec pozostałych jednostek",null,null,null,"06",{"$f":"H44+H46","v":16024838.83}]
[]
[null,null,"w tym"," z tytułu kredytów i pożyczek",null,null,"07",8642904.8300000001]
[]
[null,null,null," z tytułu innych długoterminowych",null,null,"08",7381934]
[]
[]
[]
[]
[]
[]
[]
[]
[]
[]
[]
[]
[]
[null,"© www.signform.pl Sp. z o.o., e-mail: biuro@signform.pl, tel. (0-22) 337-11-51, fax: (0-22) 337-11-52"]

{"sheet":"Strona 7","index":6,"n_rows":62,"n_cols":8,"rows_kept":62,"cut":false,"hidden":false,"merged":[[2,1,2,5],[3,1,4,6],[10,2,11,5],[10,6,11,6],[6,6,7,6],[8,2,9,5],[6,1,7,5],[8,1,25,1],[12,2,13,5],[14,2,25,2],[18,3,19,5],[20,3,21,5],[12,6,13,6],[14,3,15,5],[18,6,19,6],[20,6,21,6],[3,7,4,7],[6,7,7,7],[14,6,15,6],[8,6,9,6],[8,7,9,7],[5,1,5,6],[10,7,11,7],[14,7,15,7],[12,7,13,7],[34,7,35,7],[26,6,27,6],[31,1,32,6],[34,6,35,6],[34,1,35,5],[24,7,25,7],[26,1,27,5],[24,3,25,5],[22,7,23,7],[24,6,25,6],[22,3,23,5],[16,7,17,7],[16,6,17,6],[20,7,21,7],[22,6,23,6],[16,3,17,5],[42,6,43,6],[38,6,39,6],[36,6,37,6],[36,7,37,7],[38,7,39,7],[18,7,19,7],[33,1,33,6],[31,7,32,7],[30,1,30,5],[26,7,27,7],[36,1,37,5],[40,1,41,5],[38,1,39,5],[52,1,52,4],[52,5,52,7],[42,1,43,5],[42,7,43,7],[40,7,41,7],[44,6,45,6],[40,6,41,6],[44,7,45,7],[50,1,51,7],[46,7,47,7],[44,1,47,1],[46,2,47,5],[56,1,57,3],[56,4,57,4],[46,6,47,6],[44,2,45,5],[55,6,55,7],[55,1,55,3],[56,5,57,5],[53,1,54,3],[53,4,54,4],[53,5,54,5],[56,6,57,7],[53,6,54,7]]}
[]
[null,null,null,null,null,null,null,"strona 7"]
[null," Dział 3. Wybrane źródła finansowania majątku (w zł) (dok.)"]
[null,"Wyszczególnienie",null,null,null,null,null,"Stan na koniec okresu\nsprawozdawczego"]
[]
[null,0,null,null,null,null,null,1]
[null," Zobowiązania krótkoterminowe bez funduszy specjalnych (w. 10+12)",null,null,null,null,"09",{"$f":"SUM(H9+H13)","v":25127065}]
[]
[null,"z tego"," wobec jednostek powiązanych",null,null,null,"10"]
[]
[null,null,"w tym z tytułu dostaw i usług (bez względu na okres wymagalności\nzapłaty)",null,null,null,"11"]
[]
[null,null," wobec pozostałych jednostek",null,null,null,"12",{"$f":"SUM(H15+H17+H19+H21+H23+H25)","v":25127065}]
[]
[null,null,"w tym "," kredyty i pożyczki",null,null,"13",2391015]
[]
[null,null,null," z tytułu emisji dłużnych papierów wartościowych",null,null,"14"]
[]
[null,null,null," z tytułu dostaw i usług (bez względu na okres wymagalności\n zapłaty)",null,null,"15",15474967]
[]
[null,null,null,"wadia",null,null,"16",122914]
[]
[null,null,null," z tytułu podatków, ceł, ubezpieczeń i innych świadczeń",null,null,"17",4441022]
[]
[null,null,null," z tytułu wynagrodzeń",null,null,"18",2697147]
[]
[null," Rozliczenia międzyokresowe",null,null,null,null,19]
[]
[]
[]
[null," Dział 4. Podatek od towarów i usług (VAT) oraz podatek akcyzowy (w  zł)"]
[null,"Wyszczególnienie",null,null,null,null,null,"Kwota\nw  zł"]
[]
[null,0,null,null,null,null,null,1]
[null," Podatek VAT należny ogółem",null,null,null,null,"01"]
[]
[null," Podatek VAT naliczony",null,null,null,null,"02"]
[]
[null," Kwota podatku VAT podlegającego wpłacie do budżetu",null,null,null,null,"03",204866]
[]
[null," Kwota podatku VAT do zwrotu",null,null,null,null,"04"]
[]
[null," Podatek akcyzowy ogółem",null,null,null,null,"05"]
[]
[null,"w tym"," od wyrobów krajowych (producent)",null,null,null,"06"]
[]
[null,null," od towarów sprowadzanych z zagranicy",null,null,null,"07"]
[]
[]
[]
[null,"Część II. NAKŁADY NA ŚRODKI TRWAŁE\nDział 1. Środki trwałe w budowie - nowo rozpoczęte w okresie sprawozdawczym"]
[]
[null,"Liczba nowo rozpoczętych",null,null,null,"Wartość kosztorysowa nowo rozpoczętych (w tys.zł)"]
[null,"ogółem",null,null,"w tym polegających na ulepszeniu a)","ogółem","w tym polegających na ulepszeniu a)"]
[]
[null,1,null,null,2,3,4]
[]
[]
[null,"a) Przez ulepszenie należy rozumieć przebudowę, rozbudowę, rekonstrukcję lub modernizację środka trwałego."]
[]
[]
[null,"© www.signform.pl Sp. z o.o., e-mail: biuro@signform.pl, tel. (0-22) 337-11-51, fax: (0-22) 337-11-52"]

{"sheet":"Strona 8","index":7,"n_rows":61,"n_cols":9,"rows_kept":61,"cut":false,"hidden":false,"merged":[[13,7,14,8],[9,6,10,6],[22,5,23,5],[22,6,23,6],[22,7,23,8],[17,7,19,8],[20,7,21,8],[9,7,10,8],[11,7,12,8],[11,6,12,6],[24,7,25,8],[24,5,25,5],[2,2,2,6],[3,2,3,6],[4,1,7,4],[4,5,4,8],[5,5,6,6],[5,7,7,8],[8,7,8,8],[9,4,10,4],[8,1,8,4],[9,1,10,3],[11,4,12,4],[20,5,21,5],[17,5,19,5],[11,1,29,1],[20,4,21,4],[11,5,12,5],[26,2,27,3],[22,4,23,4],[15,7,16,8],[28,5,29,5],[9,5,10,5],[13,5,14,5],[15,5,16,5],[26,5,27,5],[28,7,29,8],[26,6,27,6],[26,7,27,8],[24,6,25,6],[24,2,25,3],[22,2,23,3],[15,4,16,4],[13,4,14,4],[30,4,33,4],[20,3,21,3],[17,3,19,3],[30,1,33,3],[41,7,44,8],[11,2,12,3],[28,2,29,3],[15,2,16,3],[28,4,29,4],[17,2,21,2],[26,4,27,4],[13,2,14,3],[17,4,19,4],[24,4,25,4],[37,1,38,3],[39,4,40,4],[34,1,36,3],[34,4,36,4],[34,6,36,6],[43,4,44,4],[41,6,44,6],[41,5,42,5],[38,6,39,8],[30,7,36,8],[28,6,29,6],[43,5,44,5],[41,4,42,4],[37,5,38,5],[30,5,33,5],[37,4,38,4],[30,6,33,6],[34,5,36,5],[39,5,40,5],[45,5,48,5],[51,6,52,6],[60,8,61,8],[55,8,57,8],[51,8,52,8],[51,7,52,7],[53,7,54,7],[55,6,57,6],[58,6,59,6],[51,4,52,4],[45,4,48,4],[53,5,54,5],[49,5,50,5],[51,5,52,5],[53,6,54,6],[49,4,50,4],[55,5,56,5],[55,7,57,7],[40,7,40,8],[49,7,50,7],[53,4,54,4],[55,4,56,4],[45,7,45,8],[47,7,48,7],[47,8,48,8],[49,6,50,6],[47,6,48,6],[43,3,44,3],[62,1,62,7],[59,5,61,5],[60,6,61,6],[60,7,61,7],[58,7,59,7],[59,4,61,4],[57,5,58,5],[57,4,58,4],[59,1,61,3],[51,2,52,3],[41,2,42,3],[57,2,58,3],[39,1,40,3],[41,1,58,1],[49,3,50,3],[55,2,56,3],[53,2,54,3],[43,2,50,2],[45,3,48,3]]}
[]
[]
[null,null," Dział 2. Nakłady na budowę, ulepszenie i nabycie środków trwałych",null,null,null,null,"strona 8"]
[null,null,"oraz nabycie wartości niematerialnych i prawnych (w tys. zł)"]
[null,"Wyszczególnienie",null,null,null,"Nakłady w okresie sprawozdawczym na:"]
[null,null,null,null,null,"nowe obiekty majątkowe (budowę, zakup)\noraz ulepszenia a) istniejących",null,"zakup używanych\nśrodków trwałych"]
[]
[null,null,null,null,null,"ogółem","w tym z importu b)"]
[null,0,null,null,null,1,2,3]
[null," Ogółem nakłady\n (w. 02+04+07+08+09+11+12)",null,null,"01",{"$f":"F16+F23+F27","v":374361},{"$f":"IF(AND(G23=\"\",G25=\"\",G27=\"\",G31=\"\",G35=\"\"),\"\",SUM(G23,G25,G27,G31,G35))","v":""},{"$f":"IF(AND(H12=\"\",H16=\"\",H23=\"\",H25=\"\",H27=\"\"),\"\",SUM(H12,H16,H23,H25,H27))","v":""}]
[]
[null,"w tym"," grunty (grupa 0)",null,"02"]
[]
[null,null,"w tym prawo użytkowania\nwieczystego",null,"03"]
[]
[null,null," budynki i lokale oraz obiekty\n inżynierii lądowej i wodnej\n (grupy 1-2)",null,"04",149374]
[]
[null,null,"w tym"," spółdzielcze własnościowe \n prawo do lokalu mieszkalnego \n i użytkowego","05"]
[]
[]
[null,null,null," melioracje szczegółowe\n (rodzaj 226)","06"]
[]
[null,null," maszyny i urządzenia\n techniczne (grupy 3-6)",null,"07",4115]
[]
[null,null," środki transportu\n (grupa 7)",null,"08",0]
[]
[null,null," pozostałe środki trwałe\n (grupa 8 i 9)",null,"09",220872]
[]
[null,null,"w tym narzędzia, przyrządy, ruchomości i wyposażenie (grupa 8)",null,"10"]
[]
[null," Koszty obsługi zobowiązań \n zaciągniętych w celu sfinansowania \n zakupu budowy lub ulepszenia \n środka trwałego oraz związane z \n nimi różnice kursowe w okresie \n sprawozdawczym",null,null,"11",null,null,"\n a) Przez ulepszenie należy\n rozumieć przebudowę, roz-\n budowę, rekonstrukcję lub\n modernizację środka trwałego.\n b) Łącznie z wydatkami na \n środki trwałe wyprodukowane \n poza granicami kraju, \n a zakupione w kraju od \n dealera lub pośrednika."]
[]
[]
[]
[null," Pozostałe nakłady związane z budową\n środka trwałego, które po jej \n zakończeniu nie będą stanowiły \n środka trwałego",null,null,"12"]
[]
[]
[null," Z wartości ogółem przypada na\n roboty budowlano-montażowe",null,null,13]
[null,null,null,null,null,null," Dział 3. Leasing w tys. zł (bez znaku po przecinku)"]
[null," Nakłady na wartości niematerialne\n i prawne - ogółem",null,null,"14"]
[null,null,null,null,null,null,"Wypełnia leasingobiorca","Wypełnia leasingodawca"]
[null,"w tym"," autorskie prawa majątkowe, \n prawa pokrewne, licencje i \n koncesje",null,"15",null,"Wartość nowych środków\ntrwałych przyjętych w okresie\nsprawozdawczym do \nodpłatnego używania na mocy\numowy o leasing:"," Wartość środków trwałych\nzakupionych w okresie\nsprawozdawczym z \nprzeznaczeniem do oddania \nw leasing:"]
[]
[null,null,"w tym"," oprogramowanie \n komputerowe","16"]
[]
[null,null,null," dokumentacja i projekty\n zagospodarowania złóż oraz\n oceny eksploatacji złóż, \n prawa eksploatacji gruntu\n związanego ze złożami","17",null,1,2]
[null,null,null,null,null,null," - finansowy"," - finansowy"]
[null,null,null,null,null,null,null,null,1]
[]
[null,null,null," koncesje i licencje (bez oprogra-\n mowania komputerowego)","18",null,"     w tym środki transportu\n (grupa 7)","     w tym środki transportu\n (grupa 7)"]
[]
[null,null," prawa do wynalazków, \n patentów znaków użytkowych \n oraz zdobniczych",null,"19",null,null,null,2]
[]
[null,null," koszty zakończonych prac\n rozwojowych",null,"20",null," - operacyjny"," - operacyjny"]
[]
[null,null,"  w tym koszty prac rozwojowych \n  związanych z eksploatacją złóż",null,"21",null,null,null,3]
[]
[null,null," wartość firmy",null,"22"]
[null,null,null,null,null,null,"     w tym środki transportu\n (grupa 7)","     w tym środki transportu\n (grupa 7)"]
[null," Nakłady na nieruchomości oraz\n prawa zaliczane do inwestycji ",null,null,"23"]
[null,null,null,null,null,null,null,null,4]